[Event "Israel-ch Youth U8-18 2024"]
[Site "Kfar Saba"]
[Date "2024.04.18"]
[Round "5.3"]
[White "Rozen, Eytan"]
[Black "Michaeli, Omri"]
[Result "1-0"]
[ECO "D02"]
[WhiteElo "2499"]
[BlackElo "2031"]
[Annotator "TA"]
[PlyCount "89"]
[EventDate "2024.04.10"]
[EventType "swiss"]
[EventCountry "ISR"]
[SourceTitle "playchess.com"]
[Source "ChessBase"]
[SourceQuality "1"]
[TimeControl "5400+30"]

{[%evp 9,89,0,0,6,9,10,34,16,16,13,25,34,15,27,27,11,39,30,39,18,23,27,30,29,27,12,62,52,55,57,56,50,59,67,167,150,120,118,119,133,307,303,303,312,538,504,737,721,716,675,749,731,893,893,1041,1032,1029,1027,1180,1034,1190,1178,1174,1449,1872,1438,3876,3573,29976,29977,29975,29978,29978,29979,29979,29980,29980,29981,29981,29981,29980,29981]} 1. Nc3 {[%emt 0:00:20]} Nf6 {[%emt 0:00:12]} 2. d4 {[%emt 0:00:17]} d5 {[%emt 0:00:08]} 3. Bf4 {[%emt 0:00:11]} Bf5 {[%emt 0:00:29]} 4. e3 {[%emt 0:00:09]} e6 {[%emt 0:00:34]} 5. Nf3 {[%emt 0:00:47]} a6 {[%emt 0:04:05]} 6. Ne5 {[%emt 0:00:44]} h6 {[%emt 0:12:08]} 7. g4 {[%emt 0:02:26]} Be4 {[%emt 0:04:52]} 8. f3 {[%emt 0:01:06] White is slightly better.} Bh7 {[%emt 0:00:03]} 9. Bd3 {[%emt 0:03:38]} Nbd7 {[%emt 0:08:39]} 10. Bxh7 {[%emt 0:00:28]} Nxe5 {[%emt 0:06:11]} 11. Bxe5 {[%emt 0:01:11]} Nxh7 {[%emt 0:00:24]} 12. Qd3 {[%emt 0:02:28]} Qd7 {[%emt 0:03:20]} 13. h4 {[%emt 0:01:03][%cal Og4g5]} O-O-O {[%emt 0:03:52]} 14. O-O-O {[%emt 0:03:54]} f6 {[%emt 0:02:31]} 15. Bf4 {[%emt 0:01:37]} Bd6 {[%emt 0:01:29]} 16. Ne2 {[%emt 0:00:25]} Nf8 {[%emt 0:01:27]} 17. c4 {[%emt 0:04:41]} Qa4 {[%emt 0:05:29]} ({Better is} 17... dxc4 $11 18. Qxc4 h5) 18. Bxd6 $14 {[%emt 0:04:47]} Rxd6 {[%emt 0:06:07]} 19. c5 {[%emt 0:00:06]} Rd8 {[%emt 0:01:37]} 20. Nc3 {[%emt 0:00:06]} Qa5 {[%emt 0:05:00]} 21. Kc2 {[%emt 0:04:08]} (21. Kb1 {simplifies} c6 22. e4 h5 23. exd5 exd5 24. Qf5+) 21... b6 {[%emt 0:02:21] [#]} ({Black should try} 21... c6 $14) 22. b4 $1 {[%emt 0:03:14][%mdl 512]} Qxb4 {[%emt 0:03:04]} 23. Qxa6+ {[%emt 0:00:08]} Kd7 {[%emt 0:00:08]} 24. Rb1 $36 {[%emt 0:00:36][%mdl 2048] White is in control.} Qc4 {[%emt 0:00:19] Black cannot hold the game after this.} (24... Qa5 $16 25. Qxa5 bxa5) 25. Qxc4 $18 {[%emt 0:00:57]} dxc4 {[%emt 0:00:02]} 26. cxb6 {[%emt 0:00:06][%cal Bc5b6,Bb6b7][%mdl 32]} Ng6 $2 {[%emt 0:07:49]} (26... cxb6 27. Rxb6 Rc8) 27. b7 {[%emt 0:02:07]} Kc6 {[%emt 0:00:46]} 28. Rb4 {[%emt 0:00:39]} Rb8 {[%emt 0:01:04]} 29. h5 {[%emt 0:00:10]} Ne7 {[%emt 0:00:06]} 30. Rhb1 {[%emt 0:00:03]} Nd5 {[%emt 0:00:19]} 31. Rxc4+ {[%emt 0:00:25]} Kd7 {[%emt 0:00:29]} 32. Nxd5 {[%emt 0:00:04]} exd5 {[%emt 0:00:13][%mdl 4096] Endgame. KRR-KRR} 33. Rc5 {[%emt 0:00:55]} c6 {[%emt 0:00:48]} 34. Rb6 {[%emt 0:02:45]} Rhe8 {[%emt 0:00:39]} 35. Kd2 {[%emt 0:02:12]} Re6 {[%emt 0:01:14]} 36. Rc3 {[%emt 0:00:37]} c5 {[%emt 0:03:17]} 37. dxc5 {[%emt 0:00:07] White wants to mate with Rxe6.} Rxb6 {[%emt 0:00:09]} 38. cxb6 {[%emt 0:00:01][%cal Oc3c8] Rc8! would kill now.} Rxb7 {[%emt 0:00:32] [#]} 39. Rc7+ $1 {[%emt 0:00:04] White mates.} Rxc7 {[%emt 0:00:15]} 40. bxc7 {[%emt 0:00:03]} Kxc7 {[%emt 0:00:25] KP-KP} 41. Kd3 {[%emt 0:00:05]} Kd6 {[%emt 0:00:47]} 42. Kd4 {[%emt 0:00:05]} Kc6 {[%emt 0:00:05]} 43. f4 {[%emt 0:00:09]} Kd6 {[%emt 0:00:13]} 44. a4 {[%emt 0:00:12][%cal Ba2a4,Ba4a5][%mdl 32]} Kc6 {[%emt 0:00:05]} 45. a5 {[%emt 0:00:04] Weighted Error Value: White=0.06 (flawless) /Black=0.48.  Loses game:     	---       	Black=1      Mistake:       	---       	Black=3      Inaccurate:     	---       	Black=2      OK:         	White=7     	Black=7      Best:        	White=3     	Black=1} 1-0

[Event "Israel-ch Youth U8-18 2024"]
[Site "Kfar Saba"]
[Date "2024.04.18"]
[Round "5.4"]
[White "Menahem, Adi"]
[Black "Meirovich, Ilay"]
[Result "1/2-1/2"]
[ECO "D02"]
[WhiteElo "2112"]
[BlackElo "1880"]
[Annotator "TA"]
[PlyCount "62"]
[EventDate "2024.04.10"]
[EventType "swiss"]
[EventCountry "ISR"]
[SourceTitle "playchess.com"]
[Source "ChessBase"]
[SourceQuality "1"]
[TimeControl "5400+30"]

{[%evp 9,62,3,14,3,-4,0,43,29,28,39,43,30,172,-3,129,87,80,62,51,65,55,64,77,0,72,-12,-23,-15,-15,-18,-22,-16,-26,-22,-15,-13,-14,-22,-4,-6,-4,-15,0,0,0,-9,0,0,0,-9,0,0,0,-10,0]} 1. d4 {[%emt 0:00:17]} Nf6 {[%emt 0:00:07]} 2. Bf4 {[%emt 0:00:18]} d5 {[%emt 0:00:08]} 3. e3 {[%emt 0:00:06]} c5 {[%emt 0:00:05]} 4. Nf3 {[%emt 0:00:14]} Nc6 {[%emt 0:00:04]} 5. Nbd2 {[%emt 0:00:28]} Qb6 {[%emt 0:00:07]} 6. dxc5 {[%emt 0:02:38]} Qxb2 {[%emt 0:00:10]} 7. Rb1 {[%emt 0:01:26]} Qa3 {[%emt 0:00:07][%cal Oe7e6]} 8. Bb5 {[%emt 0:02:34] White is slightly better.} g6 {[%emt 0:02:54][%cal Of8g7]} 9. Ne5 {[%emt 0:06:02]} Qxc5 {[%emt 0:03:55]} 10. c4 $1 {[%emt 0:04:28] [#] And now cxd5 would win.} Bf5 {[%emt 0:32:33]} (10... Bg7 $11 {and Black stays safe.}) 11. Rc1 $2 {[%emt 0:12:10]} ({And not} 11. Bxc6+ bxc6 12. Rc1 Nh5 $11) (11. Ba4 $18 Bxb1 12. Qxb1) 11... Rc8 {[%emt 0:06:33]} (11... Bg7 $11 {keeps the balance.}) 12. Qa4 {[%emt 0:17:19] Strongly threatening Nb3.} a6 {[%emt 0:00:48]} 13. Bxc6+ {[%emt 0:01:17]} bxc6 {[%emt 0:00:13]} 14. O-O {[%emt 0:00:53]} (14. Nb3 {keeps more tension.} Qb6 15. Nd4 Bg7 16. Ndxc6 Nd7 17. cxd5 Qb5 18. Qa3) 14... dxc4 {[%emt 0:14:51]} 15. Rxc4 {[%emt 0:08:23]} Qb5 {[%emt 0:00:14]} 16. Rfc1 {[%emt 0:02:58]} (16. Nxc6 $2 {too greedy.} Qxa4 17. Rxa4 Rxc6 $19) (16. e4 $16 {Black must now prevent Qc2.} Qxa4 17. Rxa4) 16... Bg7 {[%emt 0:01:32] [#]} (16... Qxa4 $11 {remains equal.} 17. Rxa4 Bg7) 17. Qxb5 {[%emt 0:04:28]} ({Weaker is} 17. Nxc6 Qxa4 18. Rxa4 Bd3 $15) (17. Qa3 $1 $16) 17... axb5 $11 {[%emt 0:00:52]} 18. Rxc6 {[%emt 0:00:01]} O-O {[%emt 0:01:12][%cal Be8g8,Bg8f8,Bf8g7][%mdl 32]} 19. Rxc8 {[%emt 0:01:18]} Rxc8 {[%emt 0:00:16]} 20. Rxc8+ {[%emt 0:00:27]} Bxc8 {[%emt 0:00:05]} 21. Nc6 {[%emt 0:01:03]} Kf8 {[%emt 0:00:50] The position is equal.} 22. Be5 {[%emt 0:00:29]} Bd7 {[%emt 0:00:20]} 23. Nd4 {[%emt 0:00:43]} Ne8 {[%emt 0:00:58]} 24. Bxg7+ {[%emt 0:00:38]} Kxg7 {[%emt 0:00:23][%mdl 4096] Endgame. KBN-KNN} 25. Ne4 {[%emt 0:01:54]} Nc7 {[%emt 0:00:25]} 26. Nc5 {[%emt 0:01:11]} Be8 {[%emt 0:00:10]} 27. Nd3 {[%emt 0:02:41]} Bd7 {[%emt 0:00:06]} 28. Nc5 {[%emt 0:00:03]} Be8 {[%emt 0:00:10]} 29. Nd3 {[%emt 0:00:10]} Bd7 {[%emt 0:34:52]} 30. Nc5 Be8 31. Nd3 Bd7 {[%emt 0:01:00] Weighted Error Value: White=0.27 (precise) /Black=0.33.  Missed win:     	White=1     	---        Mistake:       	White=2     	Black=3      Inaccurate:     	White=1     	Black=1      OK:         	White=7     	Black=9      Strong:       	White=1     	---} 1/2-1/2

[Event "Israel-ch Youth U8-18 2024"]
[Site "Kfar Saba"]
[Date "2024.04.18"]
[Round "5.5"]
[White "Medovoy, Yaniv"]
[Black "Abitbul, Matan"]
[Result "1-0"]
[ECO "C17"]
[WhiteElo "2009"]
[BlackElo "1916"]
[Annotator "TA"]
[PlyCount "89"]
[EventDate "2024.04.10"]
[EventType "swiss"]
[EventCountry "ISR"]
[SourceTitle "playchess.com"]
[Source "ChessBase"]
[SourceQuality "1"]
[TimeControl "5400+30"]

{[%evp 17,89,0,0,0,14,17,45,51,64,67,133,116,143,26,19,4,25,19,3,0,0,-164,-108,-170,-151,-131,-142,-295,-272,-319,-325,-327,-343,-252,-316,-296,-126,-251,-171,-394,-387,-394,-408,-398,-382,-383,-80,-53,0,0,0,0,0,0,0,-29,-35,-121,-175,-188,-77,-244,-250,-256,0,0,0,8,312,299,1410,1396,1238,1185]} 1. e4 {[%emt 0:00:01]} e6 {[%emt 0:00:02]} 2. d4 {[%emt 0:00:06]} d5 {[%emt 0:00:01]} 3. Nc3 {[%emt 0:00:06]} Bb4 {[%emt 0:00:14]} 4. e5 {[%emt 0:00:05]} c5 {[%emt 0:00:02]} 5. Bd2 {[%emt 0:00:04]} Ne7 {[%emt 0:00:02]} 6. a3 {[%emt 0:00:14]} Bxc3 {[%emt 0:00:02]} 7. Bxc3 {[%emt 0:00:06]} b6 {[%emt 0:00:02]} 8. Bb5+ {[%emt 0:00:33] The old main line.} Bd7 {[%emt 0:00:01]} 9. Bd3 {[%emt 0:00:08]} Nbc6 {[%emt 0:00:04] C17: French: 3 Nc3 Bb4 4 e5 c5 sidelines.} 10. f4 {[%emt 0:04:19]} cxd4 {[%emt 0:06:05]} 11. Bd2 {[%emt 0:02:29]} Ng6 {[%emt 0:42:41]} 12. Nf3 {[%emt 0:01:47]} Qc7 $146 {[%emt 0:01:31]} ({Predecessor:} 12... O-O 13. Ng5 h6 14. Nf3 Nh4 15. O-O Nxf3+ 16. Qxf3 a5 17. Rae1 f6 18. Qg3 f5 {0-1 Makka,I (2126)-Ikonomopoulou,M (2129) GRE-ch (Women) 34th 2011 (1)}) 13. O-O {[%emt 0:01:08]} O-O-O {[%emt 0:01:32]} (13... a5 $14) 14. b4 $16 {[%emt 0:04:04]} f6 {[%emt 0:01:05]} 15. Bxg6 {[%emt 0:02:18]} (15. Rc1 $1 $16 {Black must now prevent c4.} fxe5 16. Bxg6 (16. b5 Na5 $16) 16... hxg6 17. c4 dxc4 (17... exf4 $2 18. cxd5 Rh5 19. dxc6 $18) 18. Rxc4) 15... hxg6 $11 {[%emt 0:00:09]} 16. Re1 {[%emt 0:04:31]} g5 {[%emt 0:00:49]} 17. b5 {[%emt 0:01:20]} (17. fxg5 Nxe5 (17... fxe5 18. Nxe5 Rdf8 19. Qe2 $17) 18. Bf4 Nxf3+ 19. Qxf3 Qc3 $17 (19... Qxc2 $2 20. Rac1 $18) (19... e5 20. Bg3 $17)) 17... Ne7 {[%emt 0:00:37]} 18. Nxd4 {[%emt 0:11:43]} gxf4 {[%emt 0:01:09]} 19. exf6 $2 {[%emt 0:04:01]} (19. Bxf4 $11 {and White has nothing to worry.} Ng6 20. Bg3 fxe5 (20... Nxe5 21. c3 $11) 21. a4) 19... f3 {[%emt 0:20:22]} (19... gxf6 $19 {Hoping for ...Rdg8.} 20. Bb4 (20. Nxe6 $2 Bxe6 21. Qf3 Qc5+ 22. Qf2 Qxf2+ 23. Kxf2 Kd7 $19) 20... f3 21. Nxf3 Nf5) 20. Nxf3 {[%emt 0:02:36]} (20. fxe7 Qxh2+ (20... Rxh2 $2 21. exd8=Q+ Qxd8 22. Nxf3 $18) 21. Kf2 Qxg2+ 22. Ke3 f2 23. exd8=Q+ (23. exd8=R+ $2 Kxd8 24. Nf3 fxe1=B $19) 23... Kxd8 $19) (20. h4 $17 {was necessary.} Qg3 21. Qxf3 (21. fxe7 $2 Qxg2#) 21... Qxf3 22. Nxf3 gxf6 23. Rec1) 20... gxf6 $19 {[%emt 0:00:27]} 21. a4 {[%emt 0:00:36]} e5 {[%emt 0:02:02]} 22. g3 $2 {[%emt 0:04:02]} (22. Bb4 $17 Bg4 23. Bxe7 Qxe7 24. Qd2) 22... Rdg8 $19 {[%emt 0:07:45]} (22... Qc5+ 23. Be3 Qc7 (23... d4 24. Bf2 $17) 24. a5 $15) 23. Qc1 {[%emt 0:02:55]} Bg4 {[%emt 0:05:02]} (23... Qc5+ 24. Be3 Qc7 (24... d4 $2 25. Bf2 $19) 25. Qa3 $17) 24. Ra3 {[%emt 0:00:34]} Qc5+ {[%emt 0:01:50]} 25. Be3 {[%emt 0:00:53]} d4 {[%emt 0:00:25]} 26. Bf2 {[%emt 0:00:26]} Kb7 {[%emt 0:01:15]} (26... Nd5 $19 27. Nxd4 exd4) 27. Rb3 {[%emt 0:02:54]} (27. a5 $17) 27... Qd5 {[%emt 0:01:08]} 28. Qa3 $2 {[%emt 0:02:47]} (28. c4 Qf7 29. Qd2) 28... Nf5 $19 {[%emt 0:00:44]} 29. a5 {[%emt 0:00:42]} Bxf3 $1 {[%emt 0:02:49]} 30. axb6 {[%emt 0:01:55]} axb6 {[%emt 0:00:55]} 31. c4 {[%emt 0:05:19] [#]} Nxg3 $2 {[%emt 0:03:38]} (31... Qxc4 32. Rxf3 Ra8 33. Qc1 Qxc1 (33... Qxb5 $2 34. Rxf5 Rhf8 35. Qh6 $18) 34. Rxc1 $15) (31... dxc3 $1 $19 {[%cal Og8g3] has better winning chances. ( -> ...Rxg3+!)} 32. Qa6+ Kc7 33. Rxc3+ Kd7 34. Qxb6 Nd6) 32. Rxf3 $17 {[%emt 0:07:51]} (32. cxd5 Ne4+ 33. Bg3 Rxg3+ 34. Kf1 Nd2+ 35. Kf2 Rg2#) 32... Nf5+ {[%emt 0:01:15]} (32... Qxc4 $2 33. hxg3 (33. Rxg3 Qc5 $18) (33. Bxg3 d3 $18) 33... Ra8 34. Qe7+ Qc7 35. Qe6 $18 (35. Qxf6 e4 $18) (35. Qxc7+ Kxc7 36. Rxf6 Rae8 $18)) (32... Nh5+ $1 $15 33. Kh1 Qc5 (33... Qxc4 $2 34. Rc1 $18)) 33. Kh1 {[%emt 0:01:12]} Qe6 {[%emt 0:00:22]} (33... Qxc4 34. Rxf5 Qd5+ 35. Rf3 $18) 34. Qa6+ {[%emt 0:33:45]} Kc7 $1 {[%emt 0:00:15]} 35. Qa7+ $1 {[%emt 0:00:00]} Kd8 $1 {[%emt 0:00:30]} 36. Ra1 {[%emt 0:00:00]} Ne7 {[%emt 0:00:08]} 37. Qb8+ {[%emt 0:00:00]} ({White should play} 37. Qa8+ $15 Nc8 38. c5) 37... Nc8 $17 {[%emt 0:00:09]} 38. Qb7 {[%emt 0:00:00]} Rf8 {[%emt 0:01:25]} (38... Qxc4 39. Rxf6 $14) (38... Rg6 $19 {and Black stays clearly on top.} 39. Rg3 Rgh6 (39... Rxg3 40. Bxg3 Qxc4 41. Qg7 $11)) 39. Rd1 $2 {[%emt 0:00:00] [#]} (39. c5 $17 {was worth a try.}) 39... Rf7 $1 $19 {[%emt 0:00:15]} ({And not} 39... Qxc4 40. Bxd4 $11) 40. Qe4 {[%emt 0:00:00] [#]} Rd7 $2 {[%emt 0:00:18]} (40... Qxc4 41. Bxd4 Ke7 42. Rc3 $11 (42. Rxf6 $2 Rxf6 43. Qxe5+ Qe6 $19)) (40... Ke7 $1 $19 {[%cal Oc8d6] ...Nd6! would now be deadly.} 41. Ra1 Qxc4) 41. Rxd4 $11 {[%emt 0:00:00]} Rxd4 {[%emt 0:01:53]} 42. Bxd4 {[%emt 0:00:00]} Qe7 $2 {[%emt 0:00:00][%mdl 8192]} (42... Rg8 $11 {and Black stays safe.} 43. Bg1 Rg4 44. Qd3+ Kc7) 43. Bg1 $18 {[%emt 0:00:00]} Rf8 $2 {[%emt 0:00:20]} (43... Qe6 44. c5 bxc5) 44. Rd3+ $18 {[%emt 0:00:00]} (44. Qc6 Qd7 $16) 44... Ke8 {[%emt 0:00:36]} 45. Qc6+ {[%emt 0:00:00]} 1-0

[Event "Israel-ch Youth U8-18 2024"]
[Site "Kfar Saba"]
[Date "2024.04.18"]
[Round "5.6"]
[White "Leib, Yoni"]
[Black "Duchan, Yoav"]
[Result "1/2-1/2"]
[ECO "E60"]
[WhiteElo "1972"]
[BlackElo "1980"]
[Annotator "TA"]
[PlyCount "59"]
[EventDate "2024.04.10"]
[EventType "swiss"]
[EventCountry "ISR"]
[SourceTitle "playchess.com"]
[Source "ChessBase"]
[SourceQuality "1"]
[TimeControl "5400+30"]

{[%evp 15,59,13,25,22,30,9,14,27,66,30,69,75,75,81,66,74,62,7,5,9,18,8,27,27,62,57,64,54,82,0,0,0,86,20,28,0,0,0,0,0,0,0,0,0,0,0]} 1. Nf3 {[%emt 0:00:48]} g6 {[%emt 0:00:03]} 2. e3 {[%emt 0:00:13]} Bg7 {[%emt 0:00:04]} 3. d4 {[%emt 0:00:18]} d6 {[%emt 0:00:10]} 4. b3 {[%emt 0:00:22]} Nf6 {[%emt 0:00:34]} 5. Bb2 {[%emt 0:01:21]} O-O {[%emt 0:00:05]} 6. Be2 {[%emt 0:00:27]} Nbd7 {[%emt 0:00:23]} 7. O-O {[%emt 0:00:19]} Re8 {[%emt 0:00:35]} 8. c4 {[%emt 0:00:54]} e5 {[%emt 0:00:35]} 9. dxe5 {[%emt 0:00:20]} Ng4 {[%emt 0:02:57]} 10. Nc3 {[%emt 0:10:18]} Ngxe5 {[%emt 0:00:52]} 11. Qd2 {[%emt 0:02:15]} b6 {[%emt 0:07:50]} 12. Nd4 {[%emt 0:06:34] [#] f4 would now be deadly.} Bb7 {[%emt 0:02:44]} 13. f4 {[%emt 0:04:14]} Nc6 {[%emt 0:00:54]} 14. Bf3 {[%emt 0:00:13]} Nxd4 {[%emt 0:06:13]} 15. Bxb7 {[%emt 0:00:54]} Rb8 {[%emt 0:00:26]} 16. exd4 {[%emt 0:01:11]} (16. Bd5 $14 Nf5 17. Rfe1) 16... Rxb7 $11 {[%emt 0:00:49]} 17. Rae1 {[%emt 0:01:53]} Nf6 {[%emt 0:02:22]} 18. d5 {[%emt 0:07:42]} Rb8 {[%emt 0:03:56][%cal Bb7b8,Bb8e8,Be8e1][%mdl 32]} 19. Nb5 {[%emt 0:06:00]} Qd7 {[%emt 0:02:18]} 20. Nxa7 {[%emt 0:09:44][%cal Of4f5] White is much more active.} Rxe1 $1 {[%emt 0:09:41]} 21. Rxe1 {[%emt 0:00:19]} Re8 $1 {[%emt 0:00:44]} 22. Nb5 {[%emt 0:08:07]} (22. h3 $16) 22... Rxe1+ $1 {[%emt 0:01:17]} 23. Qxe1 {[%emt 0:00:02]} Qf5 {[%emt 0:01:12]} (23... Nxd5 $1 $11 {keeps the balance.} 24. Bxg7 Kxg7) 24. Nxc7 {[%emt 0:07:46]} (24. h3 $16) 24... Qxf4 {[%emt 0:04:38]} 25. Ne8 {[%emt 0:02:08]} (25. g3 {simplifies} Qf3 26. Qf2 Qxf2+ 27. Kxf2 Ng4+ 28. Kf3) 25... Ng4 $1 {[%emt 0:03:59][%csl LRb2,LRh2] The position is equal.} 26. Bxg7 {[%emt 0:10:52] [#] Threatens to win with g3.} Qxh2+ {[%emt 0:00:14]} 27. Kf1 {[%emt 0:00:04]} Qf4+ {[%emt 0:00:17]} 28. Kg1 {[%emt 0:00:16] aiming for g3.} Qh2+ {[%emt 0:00:07]} 29. Kf1 {[%emt 0:00:04]} Qf4+ {[%emt 0:09:52]} 30. Kg1 {[%emt 0:00:06] Weighted Error Value: White=0.25 (precise) /Black=0.12 (very precise) .  Mistake:       	White=3     	Black=1      Inaccurate:     	White=2     	Black=3      OK:         	White=6     	Black=9      Best:        	White=4     	Black=2      Strong:       	---       	Black=4} 1/2-1/2

[Event "Israel-ch Youth U8-18 2024"]
[Site "Kfar Saba"]
[Date "2024.04.18"]
[Round "5.7"]
[White "Manyevich, Rom"]
[Black "Afek, Itay"]
[Result "1/2-1/2"]
[ECO "E69"]
[WhiteElo "1927"]
[BlackElo "1816"]
[Annotator "TA"]
[PlyCount "90"]
[EventDate "2024.04.10"]
[EventType "swiss"]
[EventCountry "ISR"]
[SourceTitle "playchess.com"]
[Source "ChessBase"]
[SourceQuality "1"]
[TimeControl "5400+30"]

{[%evp 22,90,43,29,87,81,84,88,87,99,80,72,65,44,107,50,66,25,84,32,33,39,191,187,182,185,207,191,214,116,229,217,288,303,314,17,303,106,373,289,282,57,39,40,385,324,393,393,393,393,393,393,415,415,415,415,415,415,645,645,617,187,97,97,377,235,415,397,405,8,8]} 1. Nf3 {[%emt 0:00:05]} Nf6 {[%emt 0:00:01]} 2. c4 {[%emt 0:00:11]} g6 {[%emt 0:00:14]} 3. g3 {[%emt 0:00:06]} Bg7 {[%emt 0:00:07]} 4. Bg2 {[%emt 0:00:08]} O-O {[%emt 0:00:05]} 5. O-O {[%emt 0:00:07]} d6 {[%emt 0:00:19]} 6. d4 {[%emt 0:00:04]} Nbd7 {[%emt 0:00:14]} 7. Nc3 {[%emt 0:00:31]} e5 {[%emt 0:00:35]} 8. e4 {[%emt 0:00:12]} c6 {[%emt 0:01:05]} 9. h3 {[%emt 0:00:08]} Re8 {[%emt 0:00:46]} 10. Re1 {[%emt 0:00:16]} exd4 {[%emt 0:00:26]} 11. Nxd4 {[%emt 0:00:02]} Nc5 {[%emt 0:00:53]} 12. Qc2 {[%emt 0:00:20]} Nfxe4 {[%emt 0:03:39]} 13. Nxe4 $16 {[%emt 0:00:11] Bg5 would now be deadly.} Bxd4 {[%emt 0:04:51]} 14. Bg5 {[%emt 0:00:06]} Qd7 {[%emt 0:01:29] White is better.} ({Don't go for} 14... f6 $2 15. Bxf6 Qc7 16. Bxd4 $18) 15. Nf6+ {[%emt 0:00:04]} Bxf6 {[%emt 0:00:43]} 16. Bxf6 {[%emt 0:00:06]} Re6 {[%emt 0:03:26]} 17. Qc3 {[%emt 0:06:17][%mdl 1024] White has compensation.} Qc7 {[%emt 0:05:38] Black is weak on the dark squares} (17... Qe8 $14) 18. b4 {[%emt 0:04:24]} (18. Rad1 $16) 18... Nd7 $1 $14 {[%emt 0:01:30]} 19. Bg5 {[%emt 0:03:52] And now Bh6 would win. White is much more active. This pair of bishops is nice.} Ne5 {[%emt 0:07:10]} (19... a5 $1 $11) 20. f4 {[%emt 0:04:39]} (20. Bd2 $16) 20... f6 $1 {[%emt 0:00:08]} 21. Bh4 {[%emt 0:12:31][%cal Bg5h4,Bh4f6,Bf6c3][%mdl 32]} Nf7 {[%emt 0:12:18]} (21... g5 $1 $14) 22. Bxf6 $18 {[%emt 0:00:24]} Bd7 {[%emt 0:02:02]} 23. Rxe6 {[%emt 0:02:06]} Bxe6 {[%emt 0:54:21]} 24. Re1 {[%emt 0:02:17]} Re8 {[%emt 0:00:00]} 25. Qe3 {[%emt 0:09:34]} (25. Qa3 $18) 25... Nh6 {[%emt 0:00:00]} (25... Qb6 $16 {was necessary.} 26. Qxb6 axb6) 26. Qxa7 $40 {[%emt 0:09:34][%mdl 128] White wants a kill.} Qf7 {[%emt 0:00:00]} 27. Bc3 {[%emt 0:03:47]} Nf5 {[%emt 0:00:00] Prevents Qd4} 28. Kh2 $2 {[%emt 0:00:42]} ({White must play} 28. g4 $18 Ng7 29. Qd4) 28... h5 $2 {[%emt 0:00:00][%mdl 8192] [#]} (28... Bxc4 $11 {and Black stays safe.} 29. g4 (29. Rxe8+ Qxe8 30. g4 Qe3 $11) 29... Rxe1 30. Bxe1 Ng7) 29. b5 $2 {[%emt 0:03:13]} (29. g4 $1 $18 {[%cal Rg4f5] and the rest is easy.} hxg4 30. hxg4) 29... d5 $2 {[%emt 0:00:00][%mdl 8192]} (29... Bxc4 $16 {keeps fighting.} 30. bxc6 bxc6 31. Qxf7+ Bxf7) 30. bxc6 {[%emt 0:02:34]} bxc6 {[%emt 0:00:00]} 31. Qxf7+ {[%emt 0:00:35]} (31. Qb6 $18) 31... Kxf7 $14 {[%emt 0:00:00]} 32. cxd5 {[%emt 0:02:01]} Bxd5 {[%emt 0:00:00][%mdl 8192]} (32... cxd5 $14 33. g4 hxg4) 33. Bxd5+ {[%emt 0:00:47]} cxd5 {[%emt 0:00:00]} 34. Rxe8 {[%emt 0:00:25]} Kxe8 $18 {[%emt 0:00:00][%mdl 4096] Endgame. KB-KN} 35. Kg2 {[%emt 0:00:59]} Kd7 {[%emt 0:00:00]} 36. Kf3 {[%emt 0:00:46]} Kc6 {[%emt 0:00:00]} 37. g4 {[%emt 0:00:52]} Nd6 {[%emt 0:00:00]} 38. Ke3 {[%emt 0:05:13]} Kc5 {[%emt 0:00:00]} 39. Bd4+ {[%emt 0:00:30]} Kc4 {[%emt 0:00:00]} (39... Kc6 $142 40. f5 hxg4 41. hxg4 (41. fxg6 gxh3 42. Kf2 Nf5 $14) 41... gxf5) 40. Be5 {[%emt 0:01:50]} Nf7 {[%emt 0:00:00]} 41. Bg7 {[%emt 0:00:16]} (41. g5 d4+ 42. Bxd4) 41... hxg4 {[%emt 0:00:00]} 42. hxg4 {[%emt 0:00:22] Strongly threatening a4.} Nd8 $2 {[%emt 0:00:00][%mdl 8192]} (42... d4+ $16 43. Bxd4 Nh6) 43. Bf6 {[%emt 0:02:26]} Ne6 {[%emt 0:00:00]} (43... Nf7 44. f5 d4+ 45. Ke2 (45. Bxd4 gxf5 46. gxf5 Nh6 $11) 45... gxf5) 44. f5 {[%emt 0:02:34]} d4+ {[%emt 0:00:00] [#]} 45. Bxd4 $2 {[%emt 0:03:05]} gxf5 {[%emt 0:11:00] Weighted Error Value: White=0.79/Black=0.87.  Loses game:     	---       	Black=4      Missed win:     	White=4     	---        Mistake:       	White=3     	Black=6      Inaccurate:     	White=2     	Black=1      OK:         	White=14    	Black=3      Best:        	White=2     	Black=4      Strong:       	---       	Black=2} 1/2-1/2